fUST/lending_fUST_20251002
["ID","MTS","AMOUNT","RATE_DAILY","PERIOD"]
[388731639,1759339871084,-2706.91,0.00022465,2]
[388731640,1759339871093,-638.05,0.00022465,2]
[388731641,1759339871103,-3018.17,0.00022465,2]
[388731642,1759339871113,-500.0,0.00022465,2]
[388731643,1759339871122,-500.0,0.00022465,2]
[388731644,1759339871132,-1538.51,0.00022465,2]
[388731645,1759339871141,-500.0,0.00022465,2]
[388731646,1759339871151,-1493.91,0.00022465,2]
[388731647,1759339871160,-500.0,0.00022465,2]
[388731648,1759339871169,-1010.61,0.00022465,2]
[388731649,1759339871178,-411.18,0.00022465,2]
[388731650,1759339871187,-500.0,0.00022465,2]
[388731651,1759339871196,-1242.72,0.00022465,2]
[388731652,1759339871205,-687.25,0.00022465,2]
[388731653,1759339871215,-500.0,0.00022465,2]
[388731654,1759339871224,-500.0,0.00022465,2]
[388731655,1759339871237,-1123.0,0.00022465,2]
[388731656,1759339871247,-728.01,0.00022465,2]
[388731657,1759339871257,-1834.79314645,0.00022465,2]
[388731658,1759339871587,-500.0,0.00019178,2]
[388731659,1759339871596,-500.0,0.00019178,2]
[388731660,1759339871605,-500.0,0.00019178,2]
[388731661,1759339871614,-330.0,0.00019452,2]
[388731662,1759339871814,-180.1991918,0.00019177,2]
[388731663,1759339871823,-500.0,0.00019178,2]
[388731664,1759339871832,-480.0,0.00019178,2]
[388731665,1759339871841,-130.0,0.00019452,2]
[388731666,1759339871850,-500.0,0.00019452,2]
[388731667,1759339871858,-471.32678361,0.00019452,2]
[388731668,1759339871868,-500.0,0.00019452,2]
[388731669,1759339871877,-500.0,0.00019452,2]
[388731670,1759339871886,-500.0,0.00019726,2]
[388731671,1759339871896,-287.28,0.00019726,2]
[388731672,1759339871905,-480.0,0.00019726,2]
[388731673,1759339871914,-420.0,0.0002,2]
[388731674,1759339871923,-64.95685355,0.00022465,2]
[388731675,1759339872042,-500.0,0.00022465,2]
[388731676,1759339872052,-528.47,0.00022465,2]
[388731677,1759339872062,-522.71,0.00022465,2]
[388731678,1759339872071,-2068.12,0.00022465,2]
[388731679,1759339872080,-500.0,0.00022465,2]
[388731680,1759339872090,-627.31,0.00022465,2]
[388731681,1759339872099,-631.17,0.00022465,2]
[388731682,1759339872108,-500.0,0.00022465,2]
[388731683,1759339872118,-541.59,0.00022465,2]
[388731684,1759339872127,-747.86,0.00022465,2]
[388731685,1759339872141,-619.67,0.00022465,2]
[388731686,1759339872161,-500.0,0.00022465,2]
[388731687,1759339872181,-1088.66,0.00022465,2]
[388731688,1759339872191,-1596.15,0.00022465,2]
[388731689,1759339872200,-891.76,0.00022465,2]
[388731690,1759339872210,-975.15,0.00022465,2]
[388731691,1759339872219,-626.45,0.00022465,2]
[388731692,1759339872230,-782.15,0.00022465,2]
[388731693,1759339872240,-712.07,0.00022465,2]
[388731694,1759339872249,-939.17,0.00022465,2]
[388731695,1759339872259,-500.0,0.00022465,2]
[388731696,1759339872268,-699.88,0.00022465,2]
[388731697,1759339872279,-500.0,0.00022465,2]
[388731698,1759339872288,-500.0,0.00022465,2]
[388731699,1759339872297,-502.97,0.00022465,2]
[388731700,1759339872308,-757.85,0.00022465,2]
[388731701,1759339872317,-500.0,0.00022465,2]
[388731702,1759339872327,-644.97,0.00022465,2]
[388731703,1759339872336,-542.85,0.00022465,2]
[388731704,1759339872345,-500.0,0.00022465,2]
[388731705,1759339872355,-551.56,0.00022465,2]
[388731706,1759339872364,-500.0,0.00022465,2]
[388731707,1759339872374,-347.76,0.00022465,2]
[388731708,1759339872383,-1584.59,0.00022465,2]
[388731709,1759339872392,-572.93,0.00022465,2]
[388731710,1759339872401,-646.18,0.00022465,2]
[388731711,1759339872411,-1971.64,0.00022465,2]
[388731712,1759339872422,-1806.04,0.00022465,2]
[388731713,1759339872432,-500.0,0.00022465,2]
[388731714,1759339872441,-1015.63,0.00022465,2]
[388731715,1759339872450,-500.0,0.00022466,2]
[388731716,1759339872460,-800.0,0.00022466,2]
[388731717,1759339872469,-300.0,0.00022466,2]
[388731718,1759339872479,-150.0,0.00022491,2]
[388731719,1759339872488,-1018.38897898,0.000225,2]
[388731720,1759339872498,-1500.0,0.00022505,2]
[388731721,1759339872509,-1500.0,0.00022505,2]
[388731722,1759339872518,-192.0,0.00022509,2]
[388731723,1759339872527,-192.0,0.00022584,2]
[388731724,1759339872536,-3000.0,0.00022612,2]
[388731725,1759339872545,-3000.0,0.00022612,2]
[388731726,1759339872555,-3000.0,0.00022612,2]
[388731727,1759339872565,-3000.0,0.00022612,2]
[388731728,1759339872574,-206.0,0.0002263,7]
[388731729,1759339872583,-153.218577,0.0002265,28]
[388731730,1759339872593,-3000.0,0.00022712,2]
[388731731,1759339872602,-192.0,0.00022738,2]
[388731732,1759339872611,-719.71,0.00022739,2]
[388731733,1759339872621,-500.0,0.00022739,2]
[388731734,1759339872631,-500.0,0.00022739,2]
[388731735,1759339872640,-500.0,0.00022739,2]
[388731736,1759339872649,-500.0,0.00022739,2]
[388731737,1759339872658,-500.0,0.00022739,2]
[388731738,1759339872668,-500.0,0.00022739,2]
[388731739,1759339872677,-915.38,0.00022739,2]
[388731740,1759339872686,-826.68,0.00022739,2]
[388731741,1759339872695,-158.44,0.00022739,2]
[388731742,1759339872704,-549.37,0.00022739,2]
[388731743,1759339872713,-883.19,0.00022739,2]
[388731744,1759339872723,-500.0,0.00022739,2]
[388731745,1759339872734,-568.0,0.00022739,2]
[388731746,1759339872743,-500.0,0.00022739,2]
[388731747,1759339872753,-500.0,0.00022739,2]
[388731748,1759339872766,-296.97,0.00022739,2]
[388731749,1759339872776,-635.03,0.00022739,2]
[388731750,1759339872786,-1123.54,0.00022739,2]
[388731751,1759339872795,-500.0,0.00022739,2]
[388731752,1759339872804,-543.78,0.00022739,2]
[388731753,1759339872814,-500.0,0.00022739,2]
[388731754,1759339872824,-547.86,0.00022739,2]
[388731755,1759339872833,-1058.74,0.00022739,2]
[388731756,1759339872843,-500.0,0.00022739,2]
[388731757,1759339872852,-500.0,0.00022739,2]
[388731758,1759339872862,-915.85,0.00022739,2]
[388731759,1759339872871,-236.16303668,0.00022739,2]
[388731760,1759339872881,-1001.22,0.00022739,2]
[388731761,1759339872890,-2706.91,0.00022739,2]
[388731762,1759339872899,-500.0,0.00022739,2]
[388731763,1759339872908,-500.0,0.00022739,2]
[388731764,1759339872918,-1538.51,0.00022739,2]
[388731765,1759339872927,-500.0,0.00022739,2]
[388731766,1759339872937,-1493.91,0.00022739,2]
[388731767,1759339872946,-500.0,0.00022739,2]
[388731768,1759339872955,-1010.61,0.00022739,2]
[388731769,1759339872964,-317.05,0.00022739,2]
[388731770,1759339872974,-1242.72,0.00022739,2]
[388731771,1759339872983,-687.25,0.00022739,2]
[388731772,1759339872993,-217.02032485,0.00022739,2]
[388731773,1759339873003,-500.0,0.00022739,2]
[388731774,1759339873014,-1123.0,0.00022739,2]
[388731775,1759339873024,-728.01,0.00022739,2]
[388731776,1759339873033,-1899.75,0.00022739,2]
[388731777,1759339873043,-500.0,0.00022739,2]
[388731778,1759339873053,-528.47,0.00022739,2]
[388731779,1759339873062,-522.71,0.00022739,2]
[388731780,1759339873071,-2068.12,0.00022739,2]
[388731781,1759339873080,-500.0,0.00022739,2]
[388731782,1759339873090,-627.31,0.00022739,2]
[388731783,1759339873099,-631.17,0.00022739,2]
[388731784,1759339873109,-500.0,0.00022739,2]
[388731785,1759339873118,-541.59,0.00022739,2]
[388731786,1759339873128,-747.86,0.00022739,2]
[388731787,1759339873137,-619.67,0.00022739,2]
[388731788,1759339873146,-500.0,0.00022739,2]
[388731789,1759339873155,-1088.66,0.00022739,2]
[388731790,1759339873164,-1596.15,0.00022739,2]
[388731791,1759339873174,-891.76,0.00022739,2]
[388731792,1759339873183,-975.15,0.00022739,2]
[388731793,1759339873191,-626.45,0.00022739,2]
[388731794,1759339873200,-782.15,0.00022739,2]
[388731795,1759339873209,-712.07,0.00022739,2]
[388731796,1759339873218,-939.17,0.00022739,2]
[388731797,1759339873230,-500.0,0.00022739,2]
[388731798,1759339873240,-699.88,0.00022739,2]
[388731799,1759339873249,-500.0,0.00022739,2]
[388731800,1759339873260,-500.0,0.00022739,2]
[388731801,1759339873271,-362.43043566,0.00022739,2]
[388731802,1759339873284,-140.53956434,0.00022739,2]
[388731803,1759339873294,-757.85,0.00022739,2]
[388731804,1759339873304,-500.0,0.00022739,2]
[388731805,1759339873313,-644.97,0.00022739,2]
[388731806,1759339873323,-542.85,0.00022739,2]
[388731807,1759339873332,-500.0,0.00022739,2]
[388731808,1759339873340,-500.0,0.00022739,2]
[388731809,1759339873349,-551.56,0.00022739,2]
[388731810,1759339873359,-1584.59,0.00022739,2]
[388731811,1759339873368,-572.93,0.00022739,2]
[388731812,1759339873377,-646.18,0.00022739,2]
[388731813,1759339873386,-1971.64,0.00022739,2]
[388731814,1759339873395,-511.93628028,0.00022739,2]
[388731815,1759339873536,-500.0,0.00019178,2]
[388731816,1759339873545,-500.0,0.00019178,2]
[388731817,1759339873555,-442.32163973,0.00019452,2]
[388731818,1759339873564,-460.0,0.00019452,2]
[388731819,1759339873573,-1294.10371972,0.00022739,2]
[388731820,1759339873583,-500.0,0.00022739,2]
[388731821,1759339873592,-1015.63,0.00022739,2]
[388731823,1759339873602,-500.0,0.0002274,2]
[388731824,1759339873611,-460.0,0.00022761,2]
[388731825,1759339873620,-192.0,0.00022773,2]
[388731826,1759339873630,-192.0,0.00022773,2]
[388731827,1759339873640,-587.0,0.00022776,2]
[388731828,1759339873649,-192.0,0.00022791,2]
[388731829,1759339873658,-150.0,0.00022847,2]
[388731830,1759339873667,-240.86186029,0.00022879,2]
[388731831,1759339873677,-192.0,0.00022936,2]
[388731832,1759339873686,-192.0,0.00022943,2]
[388731833,1759339873695,-153.218577,0.00022958,2]
[388731834,1759339873704,-5313.01731013,0.00023,2]
[388731835,1759339873713,-160.0,0.00023,2]
[388731836,1759339873723,-4000.0,0.00023,4]
[388731837,1759339873817,-719.71,0.00023013,2]
[388731838,1759339873835,-500.0,0.00023013,2]
[388731839,1759339873845,-500.0,0.00023013,2]
[388731840,1759339873854,-500.0,0.00023013,2]
[388731841,1759339873864,-500.0,0.00023013,2]
[388731842,1759339873873,-500.0,0.00023013,2]
[388731843,1759339873882,-500.0,0.00023013,2]
[388731844,1759339873891,-915.38,0.00023013,2]
[388731845,1759339873900,-826.68,0.00023013,2]
[388731846,1759339873908,-549.37,0.00023013,2]
[388731847,1759339873917,-883.19,0.00023013,2]
[388731848,1759339873927,-500.0,0.00023013,2]
[388731849,1759339873936,-568.0,0.00023013,2]
[388731850,1759339873946,-500.0,0.00023013,2]
[388731851,1759339873955,-500.0,0.00023013,2]
[388731852,1759339873964,-635.03,0.00023013,2]
[388731853,1759339873973,-1123.54,0.00023013,2]
[388731854,1759339873983,-500.0,0.00023013,2]
[388731855,1759339873992,-543.78,0.00023013,2]
[388731856,1759339874001,-500.0,0.00023013,2]
[388731857,1759339874010,-547.86,0.00023013,2]
[388731858,1759339874019,-1058.74,0.00023013,2]
[388731859,1759339874028,-500.0,0.00023013,2]
[388731860,1759339874037,-397.66,0.00023013,2]
[388731861,1759339874046,-915.85,0.00023013,2]
[388731862,1759339874055,-2706.91,0.00023013,2]
[388731863,1759339874064,-382.78,0.00023013,2]
[388731864,1759339874073,-500.0,0.00023013,2]
[388731865,1759339874083,-1538.51,0.00023013,2]
[388731866,1759339874092,-500.0,0.00023013,2]
[388731867,1759339874101,-673.39604817,0.00023013,2]
[388731868,1759339874113,-586.36369892,0.00023013,2]
[388731869,1759339874124,-234.15025291,0.00023013,2]
[388731870,1759339874134,-500.0,0.00023013,2]
[388731871,1759339874143,-1010.61,0.00023013,2]
[388731872,1759339874152,-1242.72,0.00023013,2]
[388731873,1759339874162,-687.25,0.00023013,2]
[388731874,1759339874171,-500.0,0.00023013,2]
[388731875,1759339874181,-1123.0,0.00023013,2]
[388731876,1759339874190,-728.01,0.00023013,2]
[388731877,1759339874199,-1899.75,0.00023013,2]
[388731878,1759339874208,-500.0,0.00023013,2]
[388731879,1759339874219,-528.47,0.00023013,2]
[388731880,1759339874232,-522.71,0.00023013,2]
[388731881,1759339874244,-2068.12,0.00023013,2]
[388731882,1759339874253,-500.0,0.00023013,2]
[388731883,1759339874263,-627.31,0.00023013,2]
[388731884,1759339874273,-631.17,0.00023013,2]
[388731885,1759339874282,-500.0,0.00023013,2]
[388731886,1759339874292,-541.59,0.00023013,2]
[388731887,1759339874302,-747.86,0.00023013,2]
[388731888,1759339874311,-619.67,0.00023013,2]
[388731889,1759339874320,-500.0,0.00023013,2]
[388731890,1759339874329,-1088.66,0.00023013,2]
[388731891,1759339874338,-1596.15,0.00023013,2]
[388731892,1759339874347,-891.76,0.00023013,2]
[388731893,1759339874356,-975.15,0.00023013,2]
[388731894,1759339874365,-626.45,0.00023013,2]
[388731895,1759339874375,-782.15,0.00023013,2]
[388731896,1759339874383,-712.07,0.00023013,2]
[388731897,1759339874393,-939.17,0.00023013,2]
[388731898,1759339874402,-500.0,0.00023013,2]
[388731899,1759339874411,-699.88,0.00023013,2]
[388731900,1759339874421,-500.0,0.00023013,2]
[388731901,1759339874430,-500.0,0.00023013,2]
[388731902,1759339874439,-502.97,0.00023013,2]
[388731903,1759339874448,-192.91834898,0.00023013,2]
[388731904,1759339874460,-564.93165102,0.00023013,2]
[388731905,1759339874469,-500.0,0.00023013,2]
[388731906,1759339874478,-644.97,0.00023013,2]
[388731907,1759339874491,-542.85,0.00023013,2]
[388731908,1759339874501,-500.0,0.00023013,2]
[388731909,1759339874511,-500.0,0.00023013,2]
[388731910,1759339874520,-92.71902827,0.00023013,2]
[388731911,1759339874814,500.0,0.00027397,120]
[388731912,1759339874977,5000.0,0.00019079,2]
[388731913,1759339876155,200.0,0.00033964,120]
[388731914,1759339876213,5000.0,0.00019079,2]
[388731915,1759339886387,167.2435744,0.00010038,2]
[388731921,1759339897692,192.31409064,0.000273,120]
[388731923,1759339911296,1000.0,0.00018887,2]
[388731924,1759339928571,1100.0,0.00033924,60]
[388731925,1759339941477,151.0,0.00024,120]
[388731926,1759339941888,1200.0,0.00033924,60]
[388731927,1759339942854,151.0,0.000263,120]
[388731928,1759339944249,151.0,0.000286,120]
[388731929,1759339952686,1229.15,0.00033924,60]
[388731930,1759339967951,150.5,0.00022181,120]
[388731931,1759339968012,150.5,0.00022181,120]
[388731932,1759339968441,150.5,0.00022171,120]
[388731933,1759339968469,150.5,0.00022171,120]
[388731934,1759339968874,150.5,0.00022161,120]
[388731935,1759339968942,161.77,0.00022161,120]
[388731936,1759339969326,161.72,0.000244,120]
[388731938,1759339989819,500.0,0.00033924,60]
[388731939,1759339990084,500.0,0.00033924,60]
[388731940,1759339990340,500.0,0.00033924,60]
[388731941,1759339990600,500.0,0.00033924,60]
[388731942,1759339990959,500.0,0.00033924,60]
[388731943,1759339991234,500.0,0.00033924,60]
[388731944,1759339991490,500.0,0.00033924,60]
[388731945,1759339991743,500.0,0.00033924,60]
[388731946,1759339992018,500.0,0.00033924,60]
[388731947,1759339992262,500.0,0.00033924,60]
[388731948,1759339992525,500.0,0.00033924,60]
[388731949,1759339992763,500.0,0.00033924,60]
[388731950,1759339993056,500.0,0.00033924,60]
[388731951,1759339993314,307.71486804,0.00033924,60]
[388731953,1759339995706,561.840489,0.00018556,2]
[388731954,1759340017192,9438.169511,0.00019078,2]
[388731955,1759340017212,10000.01,0.00019078,2]
[388731956,1759340017233,10000.01,0.00019078,2]
[388731957,1759340017253,10000.01,0.00019078,2]
[388731958,1759340017278,302808.43460367,0.00019078,2]
[388731959,1759340023745,-1760.21209396,0.00019078,2]
[388731960,1759340023773,-10000.01,0.00019078,2]
[388731961,1759340023873,-10000.01,0.00019078,2]
[388731962,1759340024014,-4006.87620863,0.00019078,2]
[388731963,1759340024036,-1986.25758274,0.00019078,2]
[388731964,1759340027793,-300.0,0.00019099,2]
[388731965,1759340028378,5000.0,0.00019008,2]
[388731966,1759340036439,4400.01,0.00019099,2]
[388731967,1759340036461,599.99,0.00019099,2]
[388731968,1759340044171,1135.4993495,0.00019099,2]
[388731969,1759340052822,5000.0,0.00019099,2]
[388731970,1759340060633,3264.5206505,0.00019099,2]
[388731971,1759340060656,1735.4793495,0.00019099,2]
[388731972,1759340076286,5000.0,0.00019078,2]
[388731973,1759340084742,5000.0,0.00019078,2]
[388731974,1759340099875,0.01,0.00019078,2]
[388731975,1759340100052,4999.99,0.00019078,2]
[388731976,1759340102021,182.8732614,0.00018528,2]
[388731977,1759340103116,813.65592065,0.00033924,120]
[388731978,1759340103272,224.59945154,0.00033924,60]
[388731979,1759340108008,1597.70432029,0.00019078,2]
[388731980,1759340123472,3219.44241831,0.00019078,2]
[388731981,1759340123493,1780.55758169,0.00019078,2]
[388731982,1759340130322,193.0,0.0002678,120]
[388731983,1759340131385,5000.0,0.00019078,2]
[388731984,1759340131697,193.0,0.00028119,120]
[388731985,1759340146726,3219.45241831,0.00019078,2]
[388731986,1759340146750,1780.54758169,0.00019078,2]
[388731987,1759340155075,5000.0,0.00019078,2]
[388731988,1759340161118,500.0,0.00027397,120]
[388731989,1759340170285,5000.0,0.0001922,14]
[388731990,1759340175070,200.0,0.00033924,120]
[388731991,1759340178020,5000.0,0.0001922,14]
[388731992,1759340180356,3130.91311662,0.00019,2]
[388731994,1759340193329,5000.0,0.0001922,14]
[388731995,1759340193607,88.54930169,0.00019078,2]
[388731996,1759340193630,2460.5706883,0.00019078,2]
[388731997,1759340207137,206.03,0.000189,2]
[388731998,1759340215645,5000.0,0.0001922,14]
[388731999,1759340222655,300.0,0.00019077,2]
[388732001,1759340239200,5000.0,0.00019078,2]
[388732004,1759340262130,5000.0,0.00019078,2]
[388732005,1759340280101,205.42,0.00016384,2]
[388732006,1759340282593,300.0,0.00019077,2]
[388732007,1759340284212,196.398201,0.00018381,2]
[388732008,1759340284513,4298.191799,0.00019078,2]
[388732009,1759340284536,701.808201,0.00019078,2]
[388732010,1759340307842,5000.0,0.00019078,2]
[388732011,1759340328538,151.0,0.000182,2]
[388732012,1759340328848,151.0,0.000173,2]
[388732013,1759340329251,151.0,0.000164,2]
[388732014,1759340329616,151.0,0.000155,2]
[388732015,1759340330078,151.0,0.000146,2]
[388732016,1759340330112,3543.201799,0.00019078,2]
[388732017,1759340330134,1456.798201,0.00019078,2]
[388732018,1759340330532,151.0,0.000137,2]
[388732020,1759340342449,300.0,0.00019077,2]
[388732021,1759340348403,206.8266531,0.00018233,2]
[388732022,1759340350579,238.92,0.00019068,3]
[388732023,1759340352463,5000.0,0.00019078,2]
[388732024,1759340361568,716.8,0.00019068,3]
[388732025,1759340374887,1929.6651459,0.00019078,2]
[388732026,1759340374912,3070.3348541,0.00019078,2]
[388732027,1759340397673,5000.0,0.00019078,2]
[388732028,1759340402313,300.0,0.00019077,2]
[388732029,1759340402574,300.0,0.00019077,2]
[388732030,1759340402964,300.0,0.00019077,2]
[388732031,1759340403590,300.0,0.00019077,2]
[388732032,1759340406991,1200.0,0.00019077,2]
[388732033,1759340409162,1157.46844688,0.00019,2]
[388732034,1759340414418,-9270.14666122,0.00019078,2]
[388732035,1759340414534,-10000.01,0.00019078,2]
[388732036,1759340414640,-10000.01,0.00019078,2]
[388732037,1759340414742,-10000.01,0.00019078,2]
[388732038,1759340414969,-10000.01,0.00019078,2]
[388732039,1759340415096,-10000.01,0.00019078,2]
[388732040,1759340415214,-10000.01,0.00019078,2]
[388732041,1759340415334,-10000.01,0.00019078,2]
[388732042,1759340417010,-10000.01,0.00019078,2]
[388732043,1759340417140,-10000.01,0.00019078,2]
[388732044,1759340417253,-10000.01,0.00019078,2]
[388732045,1759340417421,-10000.01,0.00019078,2]
[388732046,1759340417581,-10000.01,0.00019078,2]
[388732047,1759340420217,5000.0,0.00019008,2]
[388732048,1759340442571,5000.0,0.00019078,2]
[388732050,1759340450452,0.01,0.00019078,2]
[388732051,1759340450476,413.24000565,0.00019078,2]
[388732052,1759340459541,379.7702236,0.00019078,2]
[388732053,1759340467463,5000.0,0.00019078,2]
[388732054,1759340472045,200.0,0.00033845,120]
[388732055,1759340474668,500.0,0.00027397,120]
[388732056,1759340478973,2230.47999125,0.00019,2]
[388732058,1759340489757,1976.5197795,0.00019078,2]
[388732059,1759340489778,3023.4802205,0.00019078,2]
[388732060,1759340498111,4844.47,0.00019078,2]
[388732061,1759340513299,2132.0597795,0.00019078,2]
[388732062,1759340513325,2867.9402205,0.00019078,2]
[388732063,1759340522616,300.0,0.00019077,2]
[388732064,1759340529170,217.92460577,0.00018978,2]
[388732065,1759340536293,5000.0,0.00019078,2]
[388732068,1759340551423,539.16440534,0.00019078,2]
[388732071,1759340559757,1074.98076839,0.00019078,2]
[388732072,1759340559779,3925.01923161,0.00019078,2]
[388732075,1759340582435,300.0,0.00019077,2]
[388732076,1759340582673,5000.0,0.00019078,2]
[388732077,1759340590963,774.99076839,0.00019078,2]
[388732078,1759340590983,4225.00923161,0.00019078,2]
[388732079,1759340599464,5000.0,0.00019078,2]
[388732082,1759340607296,775.00076839,0.00019078,2]
[388732083,1759340607318,4224.99923161,0.00019078,2]
[388732086,1759340612550,-5775.01076839,0.00019078,2]
[388732087,1759340612656,-10000.01,0.00019078,2]
[388732088,1759340612788,-10000.01,0.00019078,2]
[388732091,1759340615600,-10000.01,0.00019078,2]
[388732092,1759340615729,-10000.01,0.00019078,2]
[388732093,1759340615853,-10000.01,0.00019078,2]
[388732094,1759340616001,204.8013467,0.00018978,2]
[388732095,1759340616015,-10000.01,0.00019078,2]
[388732096,1759340616098,-10000.01,0.00019078,2]
[388732097,1759340616208,-10000.01,0.00019078,2]
[388732098,1759340616320,-10000.01,0.00019078,2]
[388732099,1759340616429,-10000.01,0.00019078,2]
[388732103,1759340623649,2028.68981279,0.00019008,2]
[388732107,1759340632114,5000.0,0.00019078,2]
[388732111,1759340640690,2354.8454174,0.00019078,2]
[388732112,1759340642604,300.0,0.00019077,2]
[388732113,1759340650002,158.0,0.00033901,60]
[388732114,1759340656147,316.47476981,0.00019078,2]
[388732116,1759340656168,4683.52523019,0.00019078,2]
[388732117,1759340679146,5000.0,0.00019078,2]
[388732119,1759340686952,316.48476981,0.00019078,2]
[388732120,1759340686974,59.89645878,0.00019078,2]
[388732121,1759340687869,5501.0142,0.00018174,2]
[388732122,1759340691329,-4439.09934122,0.00019078,2]
[388732123,1759340691463,-10000.01,0.00019078,2]
[388732124,1759340691593,-10000.01,0.00019078,2]
[388732125,1759340693178,-10000.01,0.00019078,2]
[388732126,1759340693310,-10000.01,0.00019078,2]
[388732127,1759340695207,-10000.01,0.00019078,2]
[388732128,1759340695328,-10000.01,0.00019078,2]
[388732129,1759340695458,-10000.01,0.00019078,2]
[388732131,1759340702744,5000.0,0.00019078,2]
[388732138,1759340725579,5000.0,0.00019078,2]
[388732142,1759340748688,0.01,0.00019078,2]
[388732143,1759340748711,4999.99,0.00019078,2]
[388732144,1759340749328,925.97475748,0.00019078,2]
[388732146,1759340757029,4074.04524252,0.00019078,2]
[388732147,1759340757050,925.95475748,0.00019078,2]
[388732148,1759340762353,300.0,0.00019077,2]
[388732155,1759340771988,200.0,0.00033901,120]
[388732156,1759340772408,5000.0,0.00019078,2]
[388732159,1759340789452,500.0,0.00027397,120]
[388732160,1759340794813,3774.05524252,0.00019078,2]
[388732161,1759340794833,1225.94475748,0.00019078,2]
[388732163,1759340817255,5000.0,0.00019078,2]
[388732164,1759340822339,300.0,0.00019077,2]
[388732168,1759340837172,2149.0826396,0.00018176,2]
[388732169,1759340839558,1324.98260292,0.00019078,2]
[388732170,1759340839579,3675.01739708,0.00019078,2]
[388732171,1759340843356,2165.76457121,0.00019,2]
[388732172,1759340844783,1000.0,0.00018176,2]
[388732174,1759340862548,3159.22803171,0.00019078,2]
[388732175,1759340862576,1840.77196829,0.00019078,2]
[388732176,1759340862723,808.1104182,0.00018322,2]
[388732177,1759340878256,1352.60385386,0.00019078,2]
[388732178,1759340882583,300.0,0.00019077,2]
[388732179,1759340886624,5000.0,0.00019078,2]
[388732180,1759340888985,-698.52375965,0.00019078,2]
[388732181,1759340889071,-10000.01,0.00019078,2]
[388732182,1759340889232,-10000.01,0.00019078,2]
[388732183,1759340889373,-10000.01,0.00019078,2]
[388732184,1759340889512,-10000.01,0.00019078,2]
[388732185,1759340890922,-10000.01,0.00019078,2]
[388732186,1759340902215,3312.90811843,0.00019078,2]
[388732187,1759340907333,21143.5790112,0.00033902,60]
[388732188,1759340910615,5000.0,0.00019078,2]
[388732190,1759340933531,1687.10188157,0.00019078,2]
[388732191,1759340933554,3312.89811843,0.00019078,2]
[388732192,1759340939541,455.37492052,0.00019078,2]
[388732194,1759340951381,666.0,0.00018176,2]
[388732197,1759340955804,5000.0,0.00019078,2]
[388732198,1759340978267,565.73696105,0.00019078,2]
[388732199,1759340978292,4434.26303895,0.00019078,2]
[388732201,1759341000517,2130.5401104,0.00019078,2]
[388732202,1759341029954,312.72082741,0.00018978,2]
[388732228,1759341032072,-286.81356417,0.00019078,2]
[388732229,1759341032083,-908.95456817,0.00019078,2]
[388732276,1759341037893,-1902.47090782,0.00019078,2]
[388732278,1759341037904,-878.73,0.00019078,2]